{"text_format":"1","workbook":"xlsx","n_sheets":3,"sheets":["Základní tabulky","Finálový pavouk","Průběžné pořadí"],"not_rendered":{"charts":0,"images":2,"macros":1,"external_links":0,"defined_names":4,"comments":0,"pivot_tables":0},"unopened":[],"bounds":{"document_bytes":16777216,"sheet_cells":100000,"rows_first":2000,"rows_last":500,"rows_between":2000,"halvings":0,"cell_chars":16384,"cell_head_chars":4096},"cells_cut":0,"cells_raw":0,"read":"whole","date_system":"1900"}

{"sheet":"Základní tabulky","index":0,"n_rows":48,"n_cols":9,"rows_kept":48,"cut":false,"hidden":false,"merged":[[0,0,0,8]]}
["Sparta Head Babytenis Tour III. - dívky - zima 2019 - 13.1.2019"]
[]
[]
[]
[]
[]
[]
[]
[]
[]
[]
[]
[]
[]
[]
[]
["Skupina A - kurt ",null,"Kovačková Jana","Dvořáková Denisa","Hladíková Emma","Přikrylová Kateřina","Pořadí","Počet vítězství"]
["A1","Kovačková Jana",null,"4-0","4-0","4-0","1.","3"]
["A2","Dvořáková Denisa","0-4",null,"2-4","4-2","3","1"]
["A3","Hladíková Emma","0-4","4-2",null,"4-0","2.","2"]
["A4","Přikrylová Kateřina","0-4","2-4","0-4",null,"4.","0"]
[]
["Skupina B -  kurt ",null,"Zajíčková Kateřina","Matoušková Tereza","Cenklová Adriana","Mottlová Sofie","Pořadí","Počet vítězství"]
["B1","Zajíčková Kateřina",null,"4-0","4-0","4-2","1.","3"]
["B2","Matoušková Tereza","0-4",null,"4-0","1-4","3.","1"]
["B3","Cenklová Adriana","0-4","0-4",null,"4-0","4.","0"]
["B4","Mottlová Sofie","2-4","4-1","0-4",null,"2.","2"]
[]
["Skupina C - kurt ",null,"Chlumská Laura","Neužilová Natálie","Dušková Darina","Mousa Sarah","Žáčková Marcela","Pořadí","Počet vítězství"]
["C1","Chlumská Laura",null,"4-0","4-0","4-0","4-1","1.","4"]
["C2","Neužilová Natálie","0-4",null,"0-4","3-4","2-4","5.","0"]
["C3","Dušková Darina","0-4","4-0",null,"4-3","4-2","2.","3"]
["C4","Mousa Sarah","0-4","4-3","3-4",null,"1-4","4.","1"]
["C5","Žáčková Marcela","1-4","4-2","2-4","4-1",null,"3.","2"]
[]
["Skupina D - kurt ",null,"Havlíková Viktorie","Havlová Klára","Filipová Kateřina","Vondráčková Michaela","Jelínková Adéla","Pořadí","Počet vítězství"]
["D1","Havlíková Viktorie",null,"4-1","4-0","4-2","4-1","1.","4"]
["D2","Havlová Klára","1-4",null,"0-4","0-4","4-0","4.","1"]
["D3","Filipová Kateřina","2-4","4-0",null,"4-1","4-0","2.","3"]
["D4","Vondráčková Michaela","2-4","4-0","1-4",null,"4-3","3.","2"]
["D5","Jelínková Adéla","1-4","0-4","0-4","3-4",null,"5.","0"]
[]
["Skupina E - kurt",null,"Vernerová Sabina","Střihavková Nela","Jančarová Mariana","Řežábková Tereza","Treutnerová Viktorie","Pořadí","Počet vítězství"]
["E1","Vernerová Sabina",null,"4-0","4-0","4-0","4-0","1.","4"]
["E2","Střihavková Nela","0-4",null,"0-4","4-1","4-1","3.","2"]
["E3","Jančarová Mariana","0-4","4-0",null,"4-0","4-3","2.","3"]
["E4","Řežábková Tereza","0-4","1-4","0-4",null,"0-4","5.","0"]
["E5","Treutnerová Viktorie","0-4","1-4","3-4","4-0",null,"4.","1"]

{"sheet":"Finálový pavouk","index":1,"n_rows":32,"n_cols":4,"rows_kept":32,"cut":false,"hidden":false,"merged":[]}
["Finálový pavouk"]
[]
[]
[null,"Kovačková Jana"]
[]
[null,null,"Kovačková Jana"]
["Dušková Darina",null,"4-1"]
[null,"Jančarová Mariana"]
["Jančarová Mariana","4-1"]
[null,null,null,"Kovačková Jana"]
[null,null,null,"4-0"]
[null,"Mottlová Sofie"]
[]
[null,null,{"$f":"$B$16","v":"Havlíková Viktorie"}]
[null,null,"4-1"]
[null,"Havlíková Viktorie"]
[]
[null,null,null,"Kovačková Jana"]
[null,null,null,"4-0"]
[null,"Chlumská Laura"]
[]
[null,null,{"$f":"$B$20","v":"Chlumská Laura"}]
[null,null,"4-1"]
[null,"Vernerová Sabina"]
[]
[null,null,null,"Zajíčková Kateřina"]
["Filipová Kateřina",null,null,"4-2"]
[null,{"$f":"$A$29","v":"Hladíková Emma"}]
["Hladíková Emma","4-3"]
[null,null,{"$f":"$B$32","v":"Zajíčková Kateřina"}]
[null,null,"4-1"]
[null,"Zajíčková Kateřina"]

{"sheet":"Průběžné pořadí","index":2,"n_rows":64,"n_cols":8,"rows_kept":64,"cut":false,"hidden":false,"merged":[[0,0,0,7]]}
["POŘADÍ - SPARTA HEAD BABYTENIS TOUR ZIMA 2019 - DÍVKY"]
[]
[]
[]
[]
[]
[]
[]
[]
[]
[]
[]
[]
[]
[]
[]
[]
[]
[]
[]
[]
[]
[]
["Pořadí","Příjmení","1. turnaj","2. turnaj","3. turnaj","4. turnaj","Masters","Celkem"]
["1.","Kovačková Jana ",300,300,300,null,null,{"$f":"SUM(C25:G25)","v":900}]
["2.","Zajíčková Kateřina",250,250,250,null,null,750]
["3.","Chlumská Laura",200,200,200,null,null,600]
["4.","Havlíková Viktorie",10,200,200,null,null,410]
["5.","Vernerová Sabina",100,100,100,null,null,300]
["6.","Mottlová Sofie",100,20,100,null,null,220]
["7.-8.","Levinsky Gloria",200,0,0,null,null,200]
[null,"Hladíková Emma",0,100,100,null,null,200]
["9.","Vondráčková Michaela",100,50,20,null,null,170]
["10.","Chladová Ema",50,100,0,null,null,150]
["11.","Jančarová Mariana",0,10,100,null,null,{"$f":"SUM(C35:F35)","v":110}]
["12.-14.","Hrdličková Terezie",100,0,0,null,null,{"$f":"SUM(C36:G36)","v":100}]
[null,"Navrátilová Veronika",0,100,0,null,null,100]
[null,"Filipová Kateřina",0,50,50,null,null,100]
["15.","Matoušková Tereza",50,20,20,null,null,90]
["16.","Treutnerová Viktorie",50,20,10,null,null,80]
["17.","Havelková Natálie",20,50,0,null,null,70]
["18.-19.","Dufková Viktorie",50,10,0,null,null,60]
[null,"Dušková Darina",10,0,50,null,null,{"$f":"SUM(C43:F43)","v":60}]
["20.-23.","Balážová Ella",50,0,0,null,null,{"$f":"SUM(C44:G44)","v":50}]
[null,"Nováková Viktória",50,0,0,null,null,50]
[null,"Kučerová Andrea",0,50,0,null,null,50]
[null,"Žáčková Marcela",10,20,20,null,null,50]
["24.-25.","Daďová Magdaléna",20,20,0,null,null,40]
[null,"Mousa Sarah",20,10,10,null,null,40]
["26.","Střihavková Nela",10,5,20,null,null,{"$f":"SUM(C50:F50)","v":35}]
["27.-29.","Holubová Eliška",20,10,0,null,null,{"$f":"SUM(C51:G51)","v":30}]
[null,"Přikrylová Kateřina",20,0,10,null,null,{"$f":"SUM(C52:G52)","v":30}]
[null,"Havlová Klára",10,10,10,null,null,{"$f":"SUM(C53:F53)","v":30}]
["30.","Jelínková Adéla",20,0,5,null,null,{"$f":"SUM(C54:G54)","v":25}]
["31.-33.","Stáňová Šárka",20,0,0,null,null,{"$f":"SUM(C55:G55)","v":20}]
[null,"Rosolová Rozálie",0,20,0,null,null,{"$f":"SUM(C56:F56)","v":20}]
[null,"Dvořáková Denisa",0,0,20,null,null,{"$f":"SUM(C57:G57)","v":20}]
["34.-37.","Hubačová Kristýna",10,0,0,null,null,{"$f":"SUM(C58:F58)","v":10}]
[null,"Farajpourova Aináz",10,0,0,null,null,{"$f":"SUM(C59:F59)","v":10}]
[null,"Staňková Laura",0,10,0,null,null,{"$f":"SUM(C60:F60)","v":10}]
[null,"Cenklová Adriana",0,0,10,null,null,{"$f":"SUM(C61:G61)","v":10}]
["38.-40.","Smíšková Iva",0,5,0,null,null,{"$f":"SUM(C62:F62)","v":5}]
[null,"Neužilová Natálie",0,0,5,null,null,{"$f":"SUM(C63:G63)","v":5}]
[null,"Řežábková Tereza",0,0,5,null,null,{"$f":"SUM(C64:G64)","v":5}]